fUSD/lending_fUSD_20250610
["ID","MTS","AMOUNT","RATE_DAILY","PERIOD"]
[365306023,1749590387319,-490.0,0.00016438,2]
[365306024,1749590387341,-500.0,0.00016438,2]
[365306025,1749590387364,-490.0,0.00016438,2]
[365306026,1749590387387,-480.0,0.00016438,2]
[365306027,1749590387411,-220.61182839,0.00016438,2]
[365306028,1749590387433,-500.0,0.00016438,2]
[365306029,1749590387454,-500.0,0.00016438,2]
[365306030,1749590387476,-480.18,0.00016438,2]
[365306031,1749590387497,-500.0,0.00016438,2]
[365306032,1749590387519,-460.0,0.00016438,2]
[365306033,1749590387547,-490.0,0.00016438,2]
[365306034,1749590387571,-490.0,0.00016438,2]
[365306035,1749590387594,-500.0,0.00016438,2]
[365306036,1749590387616,-490.0,0.00016438,2]
[365306037,1749590387638,-490.0,0.00016438,2]
[365306038,1749590387664,-572.59768532,0.00016438,2]
[365306039,1749590387687,-1706.82,0.00016438,2]
[365306040,1749590387709,-490.0,0.00016438,2]
[365306041,1749590387731,-500.0,0.00016438,2]
[365306042,1749590387753,-263.46501789,0.00016438,2]
[365306043,1749590387777,-628.44,0.00016438,2]
[365306044,1749590387800,-490.0,0.00016438,2]
[365306045,1749590387826,-490.0,0.00016438,2]
[365306046,1749590387849,-500.0,0.00016438,2]
[365306047,1749590387871,-500.0,0.00016438,2]
[365306048,1749590387895,-487.60707069,0.00016438,2]
[365306049,1749590387919,-500.0,0.00016438,2]
[365306050,1749590387946,-490.0,0.00016438,2]
[365306051,1749590387970,-480.0,0.00016438,2]
[365306052,1749590387992,-500.0,0.00016438,2]
[365306053,1749590388018,-490.90748903,0.00016438,2]
[365306054,1749590388040,-480.0,0.00016438,2]
[365306055,1749590388068,-500.0,0.00016438,2]
[365306056,1749590388091,-245.98962655,0.00016438,2]
[365306065,1749590728412,433.93817595,0.00023,120]
[365306066,1749590732459,345.99337757,0.0002,120]
[365306068,1749590757120,-500.0,0.00016164,2]
[365306069,1749590757140,-491.21889549,0.00016399,2]
[365306072,1749590830091,-162.371147,0.00016311,2]
[365306073,1749590830119,-300.0,0.00016398,2]
[365306074,1749590830141,-3553.57321095,0.00016399,2]
[365306075,1749590839095,-709.42764909,0.00016399,2]
[365306076,1749590839144,-6915.97772272,0.00016399,2]
[365306077,1749590839165,-752.4202,0.00016411,2]
[365306078,1749590839189,-1200.0,0.00016437,2]
[365306079,1749590839210,-300.0,0.00016437,2]
[365306080,1749590839231,-234.01037345,0.00016438,2]
[365306081,1749590839251,-296.46328971,0.00016438,2]
[365306082,1749590839274,-480.0,0.00016438,2]
[365306083,1749590839295,-231.35854666,0.00016438,2]
[365306085,1749590853085,-258.64145334,0.00016438,2]
[365306086,1749590853108,-490.0,0.00016438,2]
[365306087,1749590853130,-500.0,0.00016438,2]
[365306088,1749590853152,-490.0,0.00016438,2]
[365306089,1749590853176,-480.0,0.00016438,2]
[365306090,1749590853200,-480.0,0.00016438,2]
[365306091,1749590853222,-243.10926244,0.00016438,2]
[365306094,1749590870892,2020.0,0.0002,120]
[365306106,1749590909291,190.34089619,0.0002,120]
[365306134,1749590917899,513.96085854,0.0001,120]
[365306136,1749590918137,800.0,0.00021,120]
[365306146,1749590921038,337.0,0.0002465,120]
[365306148,1749590922635,788.54155157,0.000246,120]
[365306153,1749590972161,-500.0,0.00016164,2]
[365306168,1749591031615,-300.0,0.00016437,2]
[365306169,1749591031625,-168.59357886,0.00016437,2]
[365306170,1749591031730,-1031.40642114,0.00016437,2]
[365306171,1749591031740,-236.89073756,0.00016438,2]
[365306172,1749591031750,-500.0,0.00016438,2]
[365306173,1749591031760,-172.23909134,0.00016438,2]
[365306174,1749591031769,-480.0,0.00016438,2]
[365306175,1749591031778,-490.0,0.00016438,2]
[365306176,1749591031788,-490.0,0.00016438,2]
[365306177,1749591031797,-480.0,0.00016438,2]
[365306178,1749591031806,-490.0,0.00016438,2]
[365306179,1749591031815,-490.04764733,0.00016438,2]
[365306180,1749591031824,-490.0,0.00016438,2]
[365306181,1749591031835,-13.23238367,0.00016438,2]
[365306182,1749591031848,-466.76761633,0.00016438,2]
[365306183,1749591031858,-81.70924713,0.00016438,2]
[365306184,1749591031870,-398.29075287,0.00016438,2]
[365306185,1749591031879,-509.35292162,0.00016438,2]
[365306186,1749591031889,-480.0,0.00016438,2]
[365306187,1749591031899,-480.0,0.00016438,2]
[365306188,1749591031909,-480.0,0.00016438,2]
[365306189,1749591031919,-486.4794094,0.00016438,2]
[365306190,1749591031928,-482.3172234,0.00016438,2]
[365306191,1749591031938,-602.56,0.00016438,2]
[365306192,1749591031948,-480.0,0.00016438,2]
[365306193,1749591031957,-480.0,0.00016438,2]
[365306194,1749591031967,-501.72034018,0.00016438,2]
[365306195,1749591031976,-277.12816121,0.00016438,2]
[365306196,1749591031986,-364.36002953,0.00016438,2]
[365306197,1749591031995,-490.0,0.00016438,2]
[365306198,1749591032004,-470.0,0.00016438,2]
[365306199,1749591032014,-500.0,0.00016438,2]
[365306200,1749591032023,-490.0,0.00016438,2]
[365306201,1749591032033,-500.0,0.00016438,2]
[365306202,1749591032042,-500.0,0.00016438,2]
[365306204,1749591032051,-490.0,0.00016438,2]
[365306205,1749591032061,-500.0,0.00016438,2]
[365306206,1749591032070,-490.0,0.00016438,2]
[365306207,1749591032079,-517.92,0.00016438,2]
[365306208,1749591032090,-490.0,0.00016438,2]
[365306209,1749591032099,-490.0,0.00016438,2]
[365306210,1749591032109,-396.67,0.00016438,2]
[365306211,1749591032118,-490.0,0.00016438,2]
[365306212,1749591032130,-490.0,0.00016438,2]
[365306213,1749591032139,-180.41,0.00016438,2]
[365306215,1749591032148,-490.0,0.00016438,2]
[365306217,1749591032158,-490.0,0.00016438,2]
[365306219,1749591032168,-490.0,0.00016438,2]
[365306221,1749591032177,-490.0,0.00016438,2]
[365306223,1749591032186,-490.0,0.00016438,2]
[365306225,1749591032196,-490.0,0.00016438,2]
[365306227,1749591032206,-384.05520477,0.00016438,2]
[365306229,1749591032217,-490.0,0.00016438,2]
[365306231,1749591032226,-490.0,0.00016438,2]
[365306233,1749591032235,-490.0,0.00016438,2]
[365306235,1749591032244,-490.0,0.00016438,2]
[365306237,1749591032254,-490.0,0.00016438,2]
[365306239,1749591032263,-151.0,0.00016438,2]
[365306241,1749591032274,-151.0,0.00016438,2]
[365306243,1749591032284,-490.0,0.00016438,2]
[365306245,1749591032293,-490.0,0.00016438,2]
[365306248,1749591032302,-480.0,0.00016438,2]
[365306250,1749591032311,-486.25221613,0.00016438,2]
[365306251,1749591032320,-1635.7,0.00016438,2]
[365306253,1749591032330,-490.0,0.00016438,2]
[365306255,1749591032341,-490.0,0.00016438,2]
[365306257,1749591032350,-490.0,0.00016438,2]
[365306259,1749591032359,-490.0,0.00016438,2]
[365306262,1749591032369,-501.8141931,0.00016438,2]
[365306264,1749591032378,-490.0,0.00016438,2]
[365306265,1749591032387,-490.0,0.00016438,2]
[365306267,1749591032396,-490.0,0.00016438,2]
[365306269,1749591032405,-232.22,0.00016602,2]
[365306271,1749591032414,-315.73,0.00016602,2]
[365306273,1749591032423,-489.62,0.00016602,2]
[365306275,1749591032432,-531.24,0.00016602,2]
[365306277,1749591032441,-562.81,0.00016602,2]
[365306279,1749591032450,-379.35,0.00016602,2]
[365306281,1749591032460,-490.0,0.00016602,2]
[365306283,1749591032469,-490.0,0.00016602,2]
[365306285,1749591032478,-370.0,0.00016602,2]
[365306287,1749591032487,-490.0,0.00016602,2]
[365306289,1749591032496,-490.0,0.00016602,2]
[365306291,1749591032505,-490.0,0.00016602,2]
[365306293,1749591032515,-490.0,0.00016602,2]
[365306295,1749591032524,-495.64,0.00016602,2]
[365306297,1749591032534,-490.0,0.00016602,2]
[365306299,1749591032547,-182.73,0.00016602,2]
[365306301,1749591032556,-342.06,0.00016602,2]
[365306303,1749591032565,-151.62156555,0.00016602,2]
[365306305,1749591032576,-490.0,0.00016602,2]
[365306307,1749591032586,-490.31,0.00016602,2]
[365306309,1749591032595,-490.0,0.00016602,2]
[365306311,1749591032605,-490.0,0.00016602,2]
[365306313,1749591032614,-519.29728618,0.00016602,2]
[365306315,1749591032623,-490.0,0.00016602,2]
[365306317,1749591032633,-490.0,0.00016602,2]
[365306319,1749591032642,-490.0,0.00016602,2]
[365306321,1749591032651,-490.0,0.00016602,2]
[365306323,1749591032662,-490.0,0.00016602,2]
[365306325,1749591032671,-490.0,0.00016602,2]
[365306327,1749591032680,-490.0,0.00016602,2]
[365306329,1749591032689,-490.0,0.00016602,2]
[365306331,1749591032698,-490.0,0.00016602,2]
[365306333,1749591032708,-546.98331258,0.00016602,2]
[365306335,1749591032717,-1635.7,0.00016602,2]
[365306337,1749591032726,-490.0,0.00016602,2]
[365306339,1749591032735,-490.0,0.00016602,2]
[365306341,1749591032744,-490.0,0.00016602,2]
[365306343,1749591032753,-490.0,0.00016602,2]
[365306345,1749591032762,-507.68190743,0.00016602,2]
[365306347,1749591032771,-490.0,0.00016602,2]
[365306349,1749591032780,-490.0,0.00016602,2]
[365306351,1749591032790,-468.23,0.00016767,2]
[365306353,1749591032799,-403.68,0.00016767,2]
[365306355,1749591032808,-259.37,0.00016767,2]
[365306357,1749591032817,-221.42,0.00016767,2]
[365306359,1749591032826,-490.0,0.00016767,2]
[365306361,1749591032836,-490.0,0.00016767,2]
[365306363,1749591032845,-490.0,0.00016767,2]
[365306365,1749591032858,-490.0,0.00016767,2]
[365306367,1749591032868,-490.0,0.00016767,2]
[365306369,1749591032878,-472.89630723,0.00016767,2]
[365306372,1749591032891,-53.37369277,0.00016767,2]
[365306374,1749591032900,-490.0,0.00016767,2]
[365306376,1749591032909,-490.0,0.00016767,2]
[365306378,1749591032919,-170.7960807,0.00016767,2]
[365306380,1749591032930,-268.61,0.00016767,2]
[365306382,1749591032941,-50.5939193,0.00016767,2]
[365306384,1749591032951,-490.0,0.00016767,2]
[365306386,1749591032961,-48.55110501,0.00016767,2]
[365306389,1749591032977,-441.44889499,0.00016767,2]
[365306391,1749591032986,-276.85336787,0.00016767,2]
[365306393,1749591032998,-213.14663213,0.00016767,2]
[365306395,1749591033007,-490.0,0.00016767,2]
[365306397,1749591033017,-366.71269164,0.00016767,2]
[365306400,1749591033029,-1268.98730836,0.00016767,2]
[365306402,1749591033039,-490.0,0.00016767,2]
[365306404,1749591033049,-490.0,0.00016767,2]
[365306406,1749591033059,-490.0,0.00016767,2]
[365306408,1749591033069,-490.0,0.00016767,2]
[365306410,1749591033080,-490.0,0.00016931,2]
[365306412,1749591033090,-480.0,0.00016931,2]
[365306414,1749591033100,-490.0,0.00016931,2]
[365306416,1749591033110,-490.0,0.00016931,2]
[365306418,1749591033120,-490.0,0.00016931,2]
[365306420,1749591033132,-490.0,0.00016931,2]
[365306422,1749591033142,-490.0,0.00016931,2]
[365306424,1749591033152,-490.0,0.00016931,2]
[365306426,1749591033162,-507.51166415,0.00016931,2]
[365306428,1749591033172,-1635.7,0.00016931,2]
[365306430,1749591033182,-490.0,0.00016931,2]
[365306432,1749591033192,-490.0,0.00016931,2]
[365306434,1749591033202,-246.57,0.00016931,2]
[365306436,1749591033212,-490.0,0.00017095,2]
[365306438,1749591033222,-490.0,0.00017095,2]
[365306440,1749591033231,-271.4911261,0.00017095,2]
[365306442,1749591033243,-218.5088739,0.00017095,2]
[365306444,1749591033253,-490.0,0.00017095,2]
[365306446,1749591033263,-490.0,0.00017095,2]
[365306448,1749591033272,-490.0,0.00017095,2]
[365306450,1749591033281,-490.0,0.00017095,2]
[365306452,1749591033290,-1635.7,0.00017095,2]
[365306454,1749591033300,-490.0,0.00017095,2]
[365306456,1749591033310,-490.0,0.00017095,2]
[365306458,1749591033320,-490.0,0.0001726,2]
[365306460,1749591033329,-490.0,0.0001726,2]
[365306462,1749591033339,-490.0,0.0001726,2]
[365306464,1749591033349,-490.0,0.0001726,2]
[365306466,1749591033358,-490.0,0.0001726,2]
[365306468,1749591033368,-490.0,0.0001726,2]
[365306470,1749591033378,-490.0,0.0001726,2]
[365306472,1749591033388,-1635.7,0.0001726,2]
[365306474,1749591033399,-490.0,0.0001726,2]
[365306476,1749591033409,-490.0,0.0001726,2]
[365306478,1749591033420,-201.0,0.00017279,2]
[365306480,1749591033430,-490.0,0.00017424,2]
[365306483,1749591033440,-490.0,0.00017424,2]
[365306484,1749591033450,-490.0,0.00017424,2]
[365306487,1749591033461,-490.0,0.00017424,2]
[365306489,1749591033471,-490.0,0.00017424,2]
[365306491,1749591033481,-490.0,0.00017424,2]
[365306493,1749591033491,-490.0,0.00017424,2]
[365306495,1749591033501,-1635.7,0.00017424,2]
[365306497,1749591033511,-490.0,0.00017424,2]
[365306499,1749591033520,-490.0,0.00017424,2]
[365306501,1749591033529,-250.0,0.00017514,2]
[365306503,1749591033539,-3624.28004849,0.00017525,2]
[365306505,1749591033551,-1295.74860902,0.00017525,2]
[365306507,1749591033561,-443.32342198,0.00017589,2]
[365306509,1749591033571,-125.49461516,0.00017589,2]
[365306511,1749591033584,-269.652,0.00017589,2]
[365306905,1749591037556,-94.85338484,0.00017589,2]
[365306907,1749591037566,-490.0,0.00017589,2]
[365306909,1749591037576,-61.09394216,0.00017589,2]
[365306914,1749591037613,-529.91605784,0.00017589,2]
[365306916,1749591037623,-161.0,0.00017589,2]
[365306918,1749591037632,-490.0,0.00017589,2]
[365306920,1749591037642,-490.0,0.00017589,2]
[365306922,1749591037652,-1635.7,0.00017589,2]
[365306924,1749591037661,-490.0,0.00017589,2]
[365306926,1749591037671,-490.0,0.00017589,2]
[365306928,1749591037681,-343.00213817,0.00017684,2]
[365306930,1749591037691,-500.0,0.00017684,2]
[365306932,1749591037700,-166.36499488,0.00017684,2]
[365306934,1749591037710,-500.0,0.00017684,2]
[365306936,1749591037719,-500.0,0.00017684,2]
[365306938,1749591037729,-310.3107829,0.00017684,2]
[365306940,1749591037739,-500.0,0.00017684,2]
[365306942,1749591037748,-500.0,0.00017684,2]
[365306944,1749591037758,-471.50945376,0.00017684,2]
[365306946,1749591037767,-23900.0,0.00017685,2]
[365306948,1749591037777,-151.0,0.00017717,2]
[365306950,1749591037786,-1440.72398308,0.00017728,2]
[365306952,1749591037799,-25743.26951614,0.00017728,2]
[365306955,1749591037810,-2815.99650078,0.00017728,2]
[365306957,1749591037819,-523.46,0.00017728,2]
[365306959,1749591037829,-5830.04,0.00017728,2]
[365306961,1749591037840,-490.0,0.00017753,2]
[365306963,1749591037850,-490.0,0.00017753,2]
[365306965,1749591037859,-490.0,0.00017753,2]
[365306967,1749591037869,-1635.7,0.00017753,2]
[365306969,1749591037878,-301.87282493,0.00017753,2]
[365306971,1749591037890,-188.12717507,0.00017753,2]
[365306973,1749591037899,-490.0,0.00017753,2]
[365306975,1749591037908,-192.83,0.00017891,2]
[365306977,1749591037918,-251.20219366,0.000179,2]
[365306979,1749591037927,-104.16016553,0.000179,2]
[365306981,1749591037938,-126.65358124,0.000179,2]
[365306983,1749591037947,-178.37730079,0.00017904,2]
[365306986,1749591037959,-786.2260412,0.00017904,2]
[365306989,1749591037971,-744.57665801,0.00017904,2]
[365306991,1749591037980,-490.0,0.00017917,2]
[365306993,1749591037990,-490.0,0.00017917,2]
[365306995,1749591037999,-292.0340571,0.00017917,2]
[365306998,1749591038009,-1635.7,0.00017917,2]
[365307002,1749591038018,-590.0,0.00017917,2]
[365307005,1749591038028,-490.0,0.00017917,2]
[365307007,1749591038037,-201.0,0.00017926,2]
[365307009,1749591038047,-251.20219361,0.00017969,2]
[365307011,1749591038056,-156.42,0.00017979,2]
[365307013,1749591038066,-301.01377365,0.00017982,2]
[365307035,1749591038260,-2711.44350741,0.00018,2]
[365307037,1749591038273,-1799.94227,0.00018,2]
[365307039,1749591038284,-1284.49380121,0.00018,2]
[365307152,1749591040192,-269.810001,0.00018,2]
[365307408,1749591042730,-15127.11494483,0.00018,2]
[365307415,1749591042794,-11017.7906506,0.00018,2]
[365307439,1749591043020,-502.49912,0.00018,2]
[365307703,1749591047848,-364.2583131,0.00016438,2]
[365307704,1749591047858,-1709.4500694,0.00018,2]
[365307705,1749591047869,-1160.52217767,0.00018,2]
[365307706,1749591047880,-3084.89953291,0.00018,2]
[365307707,1749591047890,-251.20219361,0.00018038,2]
[365307708,1749591047899,-200.0,0.00018046,2]
[365307709,1749591047909,-1680.0,0.00018053,2]
[365307710,1749591047918,-294.26,0.00018065,2]
[365307711,1749591047928,-490.0,0.00018082,2]
[365307712,1749591047938,-180.84,0.00018082,2]
[365307713,1749591047947,-907.95612166,0.00018082,2]
[365307715,1749591098090,162.7,0.00019205,30]
[365307718,1749591247725,-20000.0,0.00024658,120]
[365307719,1749591247749,-1757.0,0.00024658,120]
[365307720,1749591247778,-155.59372675,0.00024658,120]
[365307721,1749591247913,-263.3,0.00024734,120]
[365307722,1749591247939,-346.29,0.000249,120]
[365307723,1749591247965,-667.76561198,0.00025,120]
[365307724,1749591247988,-95030.46066127,0.00025,120]
[365307729,1749591347862,542.95,0.00015927,2]
[365307732,1749591394467,188.48,0.00013699,2]
[365307733,1749591450598,346.29,0.00024705,120]
[365307734,1749591450629,201.56,0.00024705,120]
[365307739,1749591536419,61.74,0.00024733,120]
[365307742,1749591573500,2000.0,0.0002,30]
[365307744,1749591583041,575.0,0.00024657,120]
[365307745,1749591593206,1000.0,0.00024658,120]
[365307750,1749591658366,339.23560836,0.00024657,120]
[365307756,1749591851586,201.0,0.00015574,2]
[365307760,1749591927852,2458.60091078,0.00024658,120]
[365307761,1749591950116,-500.0,0.00016164,2]
[365307762,1749591950138,-201.0,0.00016247,2]
[365307763,1749591950163,-632.96645507,0.00016437,2]
[365307767,1749592028154,-567.03354493,0.00016437,2]
[365307768,1749592028177,-300.0,0.00016437,2]
[365307769,1749592028198,-300.0,0.00016437,2]
[365307770,1749592028219,-450.0,0.00016438,2]
[365307771,1749592028241,-430.0,0.00016438,2]
[365307772,1749592028264,-407.5653129,0.00016438,2]
[365307773,1749592028284,-420.0,0.00016438,2]
[365307774,1749592028305,-480.0,0.00016438,2]
[365307775,1749592028325,-370.03446562,0.00016438,2]
[365307776,1749592028344,-480.0,0.00016438,2]
[365307777,1749592028364,-480.0,0.00016438,2]
[365307778,1749592028384,-490.0,0.00016438,2]
[365307779,1749592028405,-490.0,0.00016438,2]
[365307780,1749592028426,-490.0,0.00016438,2]
[365307781,1749592028448,-490.0,0.00016438,2]
[365307782,1749592028477,-490.0,0.00016438,2]
[365307783,1749592028500,-480.0,0.00016438,2]
[365307784,1749592028524,-480.0,0.00016438,2]
[365307785,1749592028549,-490.0,0.00016438,2]
[365307786,1749592028574,-490.0,0.00016438,2]
[365307787,1749592028596,-1451.12,0.00016438,2]
[365307788,1749592028619,-480.0,0.00016438,2]
[365307789,1749592028642,-490.0,0.00016438,2]
[365307790,1749592028666,-480.0,0.00016438,2]
[365307791,1749592028688,-494.31,0.00016438,2]
[365307792,1749592028711,-268.04,0.00016438,2]
[365307793,1749592028731,-175.8255032,0.00016438,2]
[365307794,1749592028752,-223.47,0.00016602,2]
[365307795,1749592028775,-490.0,0.00016602,2]
[365307796,1749592028797,-490.0,0.00016602,2]
[365307797,1749592028820,-148.72166475,0.00016602,2]
[365307799,1749592037098,-383.60833525,0.00016602,2]
[365307800,1749592037123,-490.0,0.00016602,2]
[365307801,1749592037149,-490.0,0.00016602,2]
[365307802,1749592037182,-490.0,0.00016602,2]
[365307803,1749592037206,-1451.12,0.00016602,2]
[365307804,1749592037231,-490.0,0.00016602,2]
[365307805,1749592037254,-248.97445038,0.00016767,2]
[365307806,1749592040093,-241.02554962,0.00016767,2]
[365307807,1749592040116,-91.42220783,0.00016767,2]
[365307809,1749592053086,-486.4577187,0.00016767,2]
[365307810,1749592053112,-390.13348663,0.00016767,2]
[365307811,1749592063439,2663.0,0.00024658,120]
[365307814,1749592121468,201.0,0.00015574,2]
[365307815,1749592145125,-500.0,0.00016164,2]
[365307820,1749592211861,201.0,0.0001592,2]
[365307824,1749592231739,-1200.0,0.00016437,2]
[365307825,1749592231749,-490.0,0.00016438,2]
[365307826,1749592231758,-490.0,0.00016438,2]
[365307827,1749592231767,-502.09,0.00016438,2]
[365307828,1749592231776,-480.0,0.00016438,2]
[365307829,1749592231786,-550.28,0.00016438,2]
[365307830,1749592231795,-490.0,0.00016438,2]
[365307831,1749592231804,-490.0,0.00016438,2]
[365307832,1749592231813,-480.0,0.00016438,2]
[365307833,1749592231822,-490.0,0.00016438,2]
[365307834,1749592231831,-510.52,0.00016438,2]
[365307835,1749592231840,-490.0,0.00016438,2]
[365307836,1749592231849,-490.0,0.00016438,2]
[365307837,1749592231859,-490.0,0.00016438,2]
[365307838,1749592231868,-480.0,0.00016438,2]
[365307839,1749592231877,-490.0,0.00016438,2]
[365307840,1749592231886,-480.0,0.00016438,2]
[365307841,1749592231895,-480.0,0.00016438,2]
[365307842,1749592231904,-490.0,0.00016438,2]
[365307843,1749592231913,-480.0,0.00016438,2]
[365307844,1749592231922,-490.0,0.00016438,2]
[365307845,1749592231931,-931.28,0.00016438,2]
[365307846,1749592231940,-490.0,0.00016438,2]
[365307847,1749592231948,-490.0,0.00016438,2]
[365307848,1749592231958,-247.62926611,0.00016438,2]
[365307849,1749592231967,-471.45,0.00016438,2]
[365307850,1749592231975,-490.0,0.00016438,2]
[365307851,1749592231984,-490.0,0.00016602,2]
[365307852,1749592231993,-490.0,0.00016602,2]
[365307853,1749592232002,-490.0,0.00016602,2]
[365307854,1749592232011,-931.28,0.00016602,2]
[365307855,1749592232019,-490.0,0.00016602,2]
[365307856,1749592232028,-567.55,0.00016602,2]
[365307857,1749592232037,-201.0,0.00016609,2]
[365307858,1749592232046,-490.0,0.00016767,2]
[365307859,1749592232055,-490.0,0.00016767,2]
[365307860,1749592232064,-490.0,0.00016767,2]
[365307861,1749592232073,-931.28,0.00016767,2]
[365307862,1749592232082,-490.0,0.00016767,2]
[365307863,1749592232092,-490.0,0.00016931,2]
[365307864,1749592232101,-490.0,0.00016931,2]
[365307865,1749592232111,-490.0,0.00016931,2]
[365307866,1749592232121,-931.28,0.00016931,2]
[365307867,1749592232130,-490.0,0.00016931,2]
[365307868,1749592232139,-303.90554763,0.00017,2]
[365307869,1749592232148,-303.90554756,0.00017003,2]
[365307870,1749592232157,-550.0,0.00017094,2]
[365307872,1749592232166,-490.0,0.00017095,2]
[365307875,1749592232174,-490.0,0.00017095,2]
[365307878,1749592232183,-490.0,0.00017095,2]
[365307880,1749592232191,-931.28,0.00017095,2]
[365307882,1749592232200,-490.0,0.00017095,2]
[365307883,1749592232209,-303.90554756,0.00017107,2]
[365307885,1749592232218,-303.90554756,0.0001721,2]
[365307887,1749592232227,-490.0,0.0001726,2]
[365307889,1749592232236,-490.0,0.0001726,2]
[365307891,1749592232245,-490.0,0.0001726,2]
[365307893,1749592232254,-931.28,0.0001726,2]
[365307895,1749592232263,-490.0,0.0001726,2]
[365307897,1749592232271,-201.0,0.00017298,3]
[365307899,1749592232280,-14282.0,0.00017307,2]
[365307901,1749592232289,-303.90554756,0.00017314,2]
[365307903,1749592232298,-1000.0,0.00017402,2]
[365307905,1749592232306,-303.90554756,0.00017417,2]
[365307907,1749592232315,-490.0,0.00017424,2]
[365307909,1749592232323,-490.0,0.00017424,2]
[365307911,1749592232332,-490.0,0.00017424,2]
[365307913,1749592232341,-931.28,0.00017424,2]
[365307914,1749592232350,-490.0,0.00017424,2]
[365307916,1749592232359,-500.66842222,0.0001745,2]
[365307918,1749592232369,-501.41037233,0.0001745,2]
[365307920,1749592232378,-502.41540632,0.0001745,2]
[365307922,1749592232386,-500.0,0.0001745,2]
[365307924,1749592232395,-500.0,0.0001745,2]
[365307926,1749592232403,-369.05,0.00017499,2]
[365307928,1749592232412,-500.0,0.000175,2]
[365307930,1749592232421,-500.0,0.000175,2]
[365307932,1749592232429,-150.0,0.00017511,2]
[365307934,1749592232438,-300.39,0.00017511,2]
[365307936,1749592232447,-150.0,0.00017511,2]
[365307938,1749592232456,-150.0,0.00017511,2]
[365307940,1749592232464,-326.66,0.00017511,2]
[365307942,1749592232473,-150.0,0.00017511,2]
[365307944,1749592232482,-163.33,0.00017511,2]
[365307945,1749592232491,-303.90554756,0.00017521,2]
[365307947,1749592232500,-150.0,0.00017545,7]
[365307949,1749592232509,-354.07,0.00017547,2]
[365307951,1749592232518,-437.90693283,0.00017589,2]
[365307954,1749592232533,-52.09306717,0.00017589,2]
[365307955,1749592232542,-304.29693283,0.00017589,2]
[365307958,1749592232553,-185.70306717,0.00017589,2]
[365307960,1749592232563,-490.0,0.00017589,2]
[365307962,1749592232573,-931.28,0.00017589,2]
[365307964,1749592232582,-490.0,0.00017589,2]
[365307965,1749592232591,-500.0,0.00017589,2]
[365307967,1749592232601,-303.90554756,0.00017624,2]
[365307969,1749592232611,-303.90554756,0.00017728,2]
[365307971,1749592232621,-11996.9,0.00017728,2]
[365307974,1749592232633,-152.90583771,0.00017753,2]
[365307976,1749592232645,-337.09416229,0.00017753,2]
[365307978,1749592232654,-490.0,0.00017753,2]
[365307980,1749592232663,-490.0,0.00017753,2]
[365307982,1749592232672,-931.28,0.00017753,2]
[365307984,1749592232682,-490.0,0.00017753,2]
[365307986,1749592232693,-666.0,0.0001776,2]
[365307988,1749592232702,-303.90554756,0.00017831,2]
[365307990,1749592232711,-8455.49488282,0.00017849,2]
[365307992,1749592232723,-1138.48394207,0.00017849,2]